[Event "Titled Tuesday Blitz June 27 Late 2023"]
[White "Vetoshko, Volodymyr"]
[Black "GAO"]
[WhiteFideId "14122480"]
[WhiteElo "2670"]
[BlackElo "2352"]
[Result "1-0"]
[Round "1"]
[TimeControl "180+2"]
[Date "2023.06.27"]
[WhiteClock "0:00:26"]
[BlackClock "0:00:02"]
[Board "111"]

1. b3 {[%clk 0:02:57]}  e5 {[%clk 0:02:59]} 2. Bb2 {[%clk 0:02:56]}  Nc6 {[%clk 0:02:59]} 3. c4 {[%clk 0:02:56]}  Nf6 {[%clk 0:02:58]} 4. e3 {[%clk 0:02:54]}  d5 {[%clk 0:02:58]} 5. cxd5 {[%clk 0:02:55]}  Nxd5 {[%clk 0:02:59]} 6. a3 {[%clk 0:02:54]}  Bd6 {[%clk 0:02:59]} 7. Qc2 {[%clk 0:02:51]}  O-O {[%clk 0:02:58]} 8. b4 {[%clk 0:02:38]}  a6 {[%clk 0:02:57]} 9. Nf3 {[%clk 0:02:35]}  Nde7 {[%clk 0:02:55]} 10. Bd3 {[%clk 0:02:29]}  f5 {[%clk 0:02:47]} 11. Bc4+ {[%clk 0:02:17]}  Kh8 {[%clk 0:02:46]} 12. Ng5 {[%clk 0:02:15]}  Qe8 {[%clk 0:02:44]} 13. Nc3 {[%clk 0:02:12]}  Qg6 {[%clk 0:02:30]} 14. h4 {[%clk 0:02:10]}  e4 {[%clk 0:02:19]} 15. Ne2 {[%clk 0:02:05]}  Ne5 {[%clk 0:02:14]} 16. Nf4 {[%clk 0:02:04]}  Qe8 {[%clk 0:01:51]} 17. h5 {[%clk 0:01:52]}  Nxc4 {[%clk 0:01:34]} 18. Qxc4 {[%clk 0:01:53]}  Bxf4 {[%clk 0:01:34]} 19. exf4 {[%clk 0:01:49]}  h6 {[%clk 0:01:27]} 20. Qxc7 {[%clk 0:01:29]}  Qd7 {[%clk 0:00:53]} 21. Rc1 {[%clk 0:01:19]}  Nd5 {[%clk 0:00:48]} 22. Qc5 {[%clk 0:00:57]}  Qd8 {[%clk 0:00:23]} 23. g3 {[%clk 0:00:49]}  Rb8 {[%clk 0:00:13]} 24. Be5 {[%clk 0:00:46]}  Ra8 {[%clk 0:00:10]} 25. Qd4 {[%clk 0:00:35]}  Nf6 {[%clk 0:00:11]} 26. Nf7+ {[%clk 0:00:29]}  Rxf7 {[%clk 0:00:06]} 27. Qxd8+ {[%clk 0:00:29]}  Kh7 {[%clk 0:00:07]} 28. Rxc8 {[%clk 0:00:26]}  Rxc8 {[%clk 0:00:02]} 29. Qxc8 {[%clk 0:00:26]} 1-0


[Site "https://www.chess.com"]

[Event "Titled Tuesday Blitz June 27 Late 2023"]
[White "Schuster, Karsten"]
[Black "Veiga, Jose Francisco R P Neves"]
[WhiteFideId "4611071"]
[BlackFideId "1930087"]
[WhiteElo "2349"]
[BlackElo "2670"]
[Result "0-1"]
[Round "1"]
[TimeControl "180+2"]
[Date "2023.06.27"]
[WhiteClock "0:01:17"]
[BlackClock "0:01:04"]
[Board "112"]

1. d4 {[%clk 0:02:46]}  e6 {[%clk 0:02:59]} 2. c4 {[%clk 0:02:42]}  b6 {[%clk 0:02:54]} 3. Nc3 {[%clk 0:02:41]}  Bb7 {[%clk 0:02:54]} 4. f3 {[%clk 0:02:40]}  d5 {[%clk 0:02:53]} 5. cxd5 {[%clk 0:02:39]}  exd5 {[%clk 0:02:54]} 6. Bf4 {[%clk 0:02:38]}  Nf6 {[%clk 0:02:54]} 7. e3 {[%clk 0:02:38]}  a6 {[%clk 0:02:53]} 8. Bd3 {[%clk 0:02:38]}  Bd6 {[%clk 0:02:53]} 9. Bxd6 {[%clk 0:02:37]}  Qxd6 {[%clk 0:02:54]} 10. Nge2 {[%clk 0:02:37]}  O-O {[%clk 0:02:54]} 11. Qd2 {[%clk 0:02:36]}  c5 {[%clk 0:02:54]} 12. O-O {[%clk 0:02:34]}  Nc6 {[%clk 0:02:54]} 13. Rfe1 {[%clk 0:02:32]}  Rfe8 {[%clk 0:02:53]} 14. Ng3 {[%clk 0:02:31]}  g6 {[%clk 0:02:52]} 15. dxc5 {[%clk 0:02:27]}  bxc5 {[%clk 0:02:44]} 16. Rad1 {[%clk 0:02:26]}  Rad8 {[%clk 0:02:44]} 17. a3 {[%clk 0:02:22]}  Ne5 {[%clk 0:02:43]} 18. Bf1 {[%clk 0:02:19]}  Qb6 {[%clk 0:02:30]} 19. Kh1 {[%clk 0:02:15]}  h5 {[%clk 0:02:15]} 20. Na4 {[%clk 0:01:56]}  Qd6 {[%clk 0:02:14]} 21. Qc2 {[%clk 0:01:50]}  h4 {[%clk 0:02:05]} 22. Ne4 {[%clk 0:01:50]}  Nxe4 {[%clk 0:02:00]} 23. fxe4 {[%clk 0:01:50]}  Ng4 {[%clk 0:01:54]} 24. g3 {[%clk 0:01:36]}  hxg3 {[%clk 0:01:48]} 25. Qxc5 {[%clk 0:01:36]}  g2+ {[%clk 0:01:45]} 26. Kxg2 {[%clk 0:01:32]}  Qxh2+ {[%clk 0:01:46]} 27. Kf3 {[%clk 0:01:32]}  dxe4+ {[%clk 0:01:29]} 28. Kxg4 {[%clk 0:01:32]}  Bc8+ {[%clk 0:01:29]} 29. Kg5 {[%clk 0:01:23]}  Qh5+ {[%clk 0:01:07]} 30. Kf6 {[%clk 0:01:17]}  Re6# {[%clk 0:01:04]} 0-1


[Site "https://www.chess.com"]

[Event "Titled Tuesday Blitz June 27 Late 2023"]
[White "Muhammed, Shuaau"]
[Black "Cuenca Jimenez, Jose Fernando"]
[WhiteFideId "16700406"]
[BlackFideId "2255570"]
[WhiteElo "2349"]
[BlackElo "2668"]
[Result "0-1"]
[Round "1"]
[TimeControl "180+2"]
[Date "2023.06.27"]
[WhiteClock "0:00:20"]
[BlackClock "0:00:58"]
[Board "114"]

1. e4 {[%clk 0:03:00]}  d6 {[%clk 0:02:59]} 2. Nf3 {[%clk 0:03:00]}  Nf6 {[%clk 0:02:59]} 3. Nc3 {[%clk 0:02:59]}  e5 {[%clk 0:02:59]} 4. d4 {[%clk 0:02:57]}  Nbd7 {[%clk 0:02:59]} 5. dxe5 {[%clk 0:02:55]}  dxe5 {[%clk 0:02:58]} 6. Bc4 {[%clk 0:02:51]}  Bb4 {[%clk 0:02:59]} 7. O-O {[%clk 0:02:47]}  O-O {[%clk 0:02:59]} 8. Bg5 {[%clk 0:02:38]}  c6 {[%clk 0:02:59]} 9. a3 {[%clk 0:02:36]}  Be7 {[%clk 0:02:56]} 10. Qe2 {[%clk 0:02:32]}  Qc7 {[%clk 0:02:56]} 11. Bh4 {[%clk 0:02:27]}  b5 {[%clk 0:02:55]} 12. Ba2 {[%clk 0:02:23]}  Nc5 {[%clk 0:02:54]} 13. Rfd1 {[%clk 0:02:19]}  Bg4 {[%clk 0:02:51]} 14. h3 {[%clk 0:02:18]}  Bh5 {[%clk 0:02:51]} 15. g4 {[%clk 0:02:13]}  Bg6 {[%clk 0:02:51]} 16. Bg3 {[%clk 0:02:05]}  Nfd7 {[%clk 0:02:41]} 17. b4 {[%clk 0:02:00]}  Ne6 {[%clk 0:02:37]} 18. Bxe6 {[%clk 0:01:57]}  fxe6 {[%clk 0:02:38]} 19. Kg2 {[%clk 0:01:46]}  a5 {[%clk 0:02:38]} 20. Nxb5 {[%clk 0:01:37]}  cxb5 {[%clk 0:02:34]} 21. Qxb5 {[%clk 0:01:37]}  Ra7 {[%clk 0:02:10]} 22. Nxe5 {[%clk 0:01:34]}  Nxe5 {[%clk 0:02:04]} 23. Bxe5 {[%clk 0:01:30]}  Bxe4+ {[%clk 0:02:04]} 24. Kg1 {[%clk 0:01:24]}  Qxc2 {[%clk 0:02:04]} 25. Bd4 {[%clk 0:01:12]}  Rb7 {[%clk 0:01:53]} 26. Qxa5 {[%clk 0:01:12]}  Qb3 {[%clk 0:01:49]} 27. Qe5 {[%clk 0:01:07]}  Bf6 {[%clk 0:01:18]} 28. Qxe4 {[%clk 0:01:07]}  Rbf7 {[%clk 0:01:18]} 29. Qd3 {[%clk 0:00:46]}  Qxd3 {[%clk 0:01:07]} 30. Rxd3 {[%clk 0:00:47]}  Rd7 {[%clk 0:01:07]} 31. Rad1 {[%clk 0:00:46]}  Rfd8 {[%clk 0:01:07]} 32. Bxf6 {[%clk 0:00:32]}  Rxd3 {[%clk 0:01:08]} 33. Rxd3 {[%clk 0:00:30]}  Rxd3 {[%clk 0:01:09]} 34. Be7 {[%clk 0:00:30]}  Rxa3 {[%clk 0:01:08]} 35. Kg2 {[%clk 0:00:29]}  Kf7 {[%clk 0:01:08]} 36. Bc5 {[%clk 0:00:29]}  Rb3 {[%clk 0:01:06]} 37. f3 {[%clk 0:00:29]}  e5 {[%clk 0:01:06]} 38. h4 {[%clk 0:00:28]}  g6 {[%clk 0:01:06]} 39. Bd6 {[%clk 0:00:27]}  Ke6 {[%clk 0:01:06]} 40. Bc5 {[%clk 0:00:28]}  Kd5 {[%clk 0:01:06]} 41. Kf2 {[%clk 0:00:28]}  e4 {[%clk 0:01:06]} 42. f4 {[%clk 0:00:26]}  Rf3+ {[%clk 0:01:06]} 43. Ke2 {[%clk 0:00:27]}  Rxf4 {[%clk 0:01:07]} 44. h5 {[%clk 0:00:27]}  Rxg4 {[%clk 0:01:07]} 45. hxg6 {[%clk 0:00:28]}  hxg6 {[%clk 0:01:07]} 46. Be3 {[%clk 0:00:27]}  Kc4 {[%clk 0:01:06]} 47. Bc5 {[%clk 0:00:27]}  Rg3 {[%clk 0:01:06]} 48. Kf2 {[%clk 0:00:27]}  Rb3 {[%clk 0:01:06]} 49. Ke2 {[%clk 0:00:27]}  g5 {[%clk 0:01:05]} 50. Be7 {[%clk 0:00:26]}  g4 {[%clk 0:01:05]} 51. Bd6 {[%clk 0:00:25]}  Rxb4 {[%clk 0:01:05]} 52. Ke3 {[%clk 0:00:26]}  Rb6 {[%clk 0:01:01]} 53. Bg3 {[%clk 0:00:20]}  Kd5 {[%clk 0:00:58]} 0-1


[Site "https://www.chess.com"]

[Event "Titled Tuesday Blitz June 27 Late 2023"]
[White "micke12a"]
[Black "Lamard, Guillaume"]
[BlackFideId "600261"]
[WhiteElo "2344"]
[BlackElo "2658"]
[Result "1-0"]
[Round "1"]
[TimeControl "180+2"]
[Date "2023.06.27"]
[WhiteClock "0:00:05"]
[BlackClock "0:00:10"]
[Board "118"]

1. d4 {[%clk 0:02:59]}  Nf6 {[%clk 0:02:57]} 2. Nf3 {[%clk 0:02:59]}  d5 {[%clk 0:02:57]} 3. g3 {[%clk 0:02:58]}  c5 {[%clk 0:02:56]} 4. Bg2 {[%clk 0:02:57]}  cxd4 {[%clk 0:02:55]} 5. O-O {[%clk 0:02:58]}  h6 {[%clk 0:02:55]} 6. Nxd4 {[%clk 0:02:52]}  e5 {[%clk 0:02:55]} 7. Nb3 {[%clk 0:02:53]}  Nc6 {[%clk 0:02:53]} 8. Nc3 {[%clk 0:02:53]}  Be6 {[%clk 0:02:54]} 9. f4 {[%clk 0:02:49]}  exf4 {[%clk 0:02:45]} 10. gxf4 {[%clk 0:02:45]}  d4 {[%clk 0:01:57]} 11. Bxc6+ {[%clk 0:02:11]}  bxc6 {[%clk 0:01:57]} 12. Qxd4 {[%clk 0:02:11]}  Qc8 {[%clk 0:01:22]} 13. f5 {[%clk 0:01:55]}  Bxf5 {[%clk 0:01:18]} 14. Qe5+ {[%clk 0:01:55]}  Be6 {[%clk 0:01:16]} 15. Nd4 {[%clk 0:01:56]}  Nd7 {[%clk 0:01:05]} 16. Qe4 {[%clk 0:01:51]}  Bc5 {[%clk 0:01:03]} 17. Be3 {[%clk 0:01:46]}  Nf6 {[%clk 0:01:02]} 18. Qe5 {[%clk 0:01:31]}  Be7 {[%clk 0:00:48]} 19. Nxe6 {[%clk 0:01:26]}  Qxe6 {[%clk 0:00:49]} 20. Qxe6 {[%clk 0:01:26]}  fxe6 {[%clk 0:00:50]} 21. Rad1 {[%clk 0:01:20]}  O-O {[%clk 0:00:50]} 22. Rf4 {[%clk 0:01:08]}  Nd5 {[%clk 0:00:48]} 23. Nxd5 {[%clk 0:01:03]}  exd5 {[%clk 0:00:47]} 24. Ra4 {[%clk 0:01:00]}  Rfb8 {[%clk 0:00:42]} 25. b3 {[%clk 0:00:59]}  a5 {[%clk 0:00:41]} 26. c4 {[%clk 0:00:59]}  Bb4 {[%clk 0:00:30]} 27. cxd5 {[%clk 0:00:52]}  cxd5 {[%clk 0:00:30]} 28. Rxd5 {[%clk 0:00:47]}  Re8 {[%clk 0:00:31]} 29. Bd2 {[%clk 0:00:42]}  Rxe2 {[%clk 0:00:17]} 30. Bxb4 {[%clk 0:00:36]}  Rc8 {[%clk 0:00:17]} 31. Bc5 {[%clk 0:00:29]}  Rc2 {[%clk 0:00:11]} 32. Rxa5 {[%clk 0:00:21]}  Re8 {[%clk 0:00:10]} 33. Bf2 {[%clk 0:00:12]}  Ree2 {[%clk 0:00:10]} 34. Rf5 {[%clk 0:00:11]}  Kh8 {[%clk 0:00:10]} 35. Ra7 {[%clk 0:00:10]}  Rxa2 {[%clk 0:00:09]} 36. Rxa2 {[%clk 0:00:08]}  Rxa2 {[%clk 0:00:10]} 37. Rf7 {[%clk 0:00:05]}  Rb2 {[%clk 0:00:10]} 38. Bd4 {[%clk 0:00:05]}  Rb1+ {[%clk 0:00:09]} 39. Kf2 {[%clk 0:00:05]}  Rd1 {[%clk 0:00:09]} 40. Be5 {[%clk 0:00:03]}  Rd5 {[%clk 0:00:08]} 41. Rf5 {[%clk 0:00:03]}  Kh7 {[%clk 0:00:07]} 42. Kf3 {[%clk 0:00:03]}  Rb5 {[%clk 0:00:08]} 43. Ke4 {[%clk 0:00:04]}  Rxb3 {[%clk 0:00:08]} 44. Rf7 {[%clk 0:00:04]}  Rh3 {[%clk 0:00:09]} 45. Rxg7+ {[%clk 0:00:04]}  Kh8 {[%clk 0:00:09]} 46. Rg3+ {[%clk 0:00:05]}  Kh7 {[%clk 0:00:10]} 47. Rxh3 {[%clk 0:00:05]}  Kg6 {[%clk 0:00:10]} 48. Rg3+ {[%clk 0:00:05]} 1-0


[Site "https://www.chess.com"]

[Event "Titled Tuesday Blitz June 27 Late 2023"]
[White "Stoleriu, George"]
[Black "morozcoma"]
[WhiteFideId "1227505"]
[WhiteElo "2658"]
[BlackElo "2340"]
[Result "1-0"]
[Round "1"]
[TimeControl "180+2"]
[Date "2023.06.27"]
[WhiteClock "0:00:48"]
[BlackClock "0:00:24"]
[Board "119"]

1. e4 {[%clk 0:02:56]}  e5 {[%clk 0:02:59]} 2. Nf3 {[%clk 0:02:57]}  Nc6 {[%clk 0:02:59]} 3. Bb5 {[%clk 0:02:57]}  a6 {[%clk 0:02:59]} 4. Ba4 {[%clk 0:02:57]}  Nf6 {[%clk 0:02:58]} 5. d3 {[%clk 0:02:58]}  b5 {[%clk 0:02:55]} 6. Bb3 {[%clk 0:02:58]}  Be7 {[%clk 0:02:55]} 7. O-O {[%clk 0:02:57]}  O-O {[%clk 0:02:56]} 8. Re1 {[%clk 0:02:58]}  d6 {[%clk 0:02:56]} 9. c3 {[%clk 0:02:58]}  Bb7 {[%clk 0:02:56]} 10. Nbd2 {[%clk 0:02:58]}  Re8 {[%clk 0:02:56]} 11. Nf1 {[%clk 0:02:59]}  Bf8 {[%clk 0:02:56]} 12. Ng3 {[%clk 0:02:59]}  g6 {[%clk 0:02:57]} 13. Ng5 {[%clk 0:02:59]}  Re7 {[%clk 0:02:57]} 14. Qf3 {[%clk 0:02:57]}  Bg7 {[%clk 0:02:55]} 15. h4 {[%clk 0:02:57]}  h5 {[%clk 0:02:33]} 16. Nf1 {[%clk 0:02:48]}  Na5 {[%clk 0:02:30]} 17. Bc2 {[%clk 0:02:47]}  c5 {[%clk 0:02:30]} 18. Ne3 {[%clk 0:02:47]}  Bc8 {[%clk 0:02:09]} 19. b4 {[%clk 0:02:45]}  cxb4 {[%clk 0:01:58]} 20. cxb4 {[%clk 0:02:24]}  Nc6 {[%clk 0:01:57]} 21. a3 {[%clk 0:02:24]}  Nd4 {[%clk 0:01:55]} 22. Qd1 {[%clk 0:02:25]}  Ng4 {[%clk 0:01:50]} 23. Bb1 {[%clk 0:02:22]}  Ne6 {[%clk 0:01:30]} 24. Nd5 {[%clk 0:02:05]}  Re8 {[%clk 0:01:21]} 25. Ba2 {[%clk 0:02:05]}  Ra7 {[%clk 0:01:12]} 26. f3 {[%clk 0:01:52]}  Nf6 {[%clk 0:01:10]} 27. Be3 {[%clk 0:01:52]}  Nd4 {[%clk 0:01:10]} 28. Rc1 {[%clk 0:01:44]}  Be6 {[%clk 0:01:07]} 29. Bxd4 {[%clk 0:01:05]}  exd4 {[%clk 0:01:03]} 30. Nxe6 {[%clk 0:01:00]}  fxe6 {[%clk 0:01:04]} 31. Nf4 {[%clk 0:01:01]}  Kh7 {[%clk 0:00:48]} 32. Nxe6 {[%clk 0:01:00]}  Qe7 {[%clk 0:00:44]} 33. Ng5+ {[%clk 0:00:59]}  Kh8 {[%clk 0:00:39]} 34. Bf7 {[%clk 0:00:57]}  Rf8 {[%clk 0:00:35]} 35. Bxg6 {[%clk 0:00:57]}  Bh6 {[%clk 0:00:35]} 36. Qd2 {[%clk 0:00:52]}  Qg7 {[%clk 0:00:35]} 37. Bf5 {[%clk 0:00:51]}  Nh7 {[%clk 0:00:31]} 38. Bxh7 {[%clk 0:00:49]}  Qxh7 {[%clk 0:00:30]} 39. Nxh7 {[%clk 0:00:47]}  Bxd2 {[%clk 0:00:29]} 40. Nxf8 {[%clk 0:00:48]}  Bxe1 {[%clk 0:00:28]} 41. Rxe1 {[%clk 0:00:48]}  Re7 {[%clk 0:00:24]} 42. Ng6+ {[%clk 0:00:48]} 1-0


[Site "https://www.chess.com"]

[Event "Titled Tuesday Blitz June 27 Late 2023"]
[White "reevecanada"]
[Black "Torres Hernandez, Leslie Carolin"]
[BlackFideId "8400504"]
[WhiteElo "2654"]
[BlackElo "2334"]
[Result "0-1"]
[Round "1"]
[TimeControl "180+2"]
[Date "2023.06.27"]
[WhiteClock "0:01:33"]
[BlackClock "0:00:15"]
[Board "121"]

1. e4 {[%clk 0:02:48]}  e6 {[%clk 0:02:59]} 2. Nf3 {[%clk 0:02:47]}  d5 {[%clk 0:02:57]} 3. Nc3 {[%clk 0:02:40]}  dxe4 {[%clk 0:02:54]} 4. Nxe4 {[%clk 0:02:41]}  Nf6 {[%clk 0:02:54]} 5. Nxf6+ {[%clk 0:02:41]}  gxf6 {[%clk 0:02:54]} 6. d4 {[%clk 0:02:41]}  Bd7 {[%clk 0:02:51]} 7. Bd3 {[%clk 0:02:42]}  Bc6 {[%clk 0:02:51]} 8. c3 {[%clk 0:02:42]}  Nd7 {[%clk 0:02:51]} 9. Bf4 {[%clk 0:02:41]}  Bd6 {[%clk 0:02:40]} 10. Bg3 {[%clk 0:02:35]}  Qe7 {[%clk 0:02:39]} 11. b4 {[%clk 0:02:31]}  a6 {[%clk 0:02:39]} 12. a4 {[%clk 0:02:30]}  b6 {[%clk 0:02:00]} 13. Qe2 {[%clk 0:02:26]}  Bb7 {[%clk 0:01:59]} 14. O-O {[%clk 0:02:25]}  O-O {[%clk 0:01:57]} 15. Nh4 {[%clk 0:02:25]}  Kh8 {[%clk 0:01:56]} 16. Qh5 {[%clk 0:02:24]}  f5 {[%clk 0:01:56]} 17. Nxf5 {[%clk 0:02:24]}  exf5 {[%clk 0:01:55]} 18. Qxf5 {[%clk 0:02:23]}  f6 {[%clk 0:01:38]} 19. Rfe1 {[%clk 0:02:22]}  Qg7 {[%clk 0:01:34]} 20. Re6 {[%clk 0:02:18]}  Bxg3 {[%clk 0:01:32]} 21. fxg3 {[%clk 0:02:15]}  Rf7 {[%clk 0:01:27]} 22. Rae1 {[%clk 0:02:11]}  Nf8 {[%clk 0:01:26]} 23. Re8 {[%clk 0:02:09]}  Rxe8 {[%clk 0:01:25]} 24. Rxe8 {[%clk 0:02:09]}  Re7 {[%clk 0:01:25]} 25. Rb8 {[%clk 0:02:04]}  Re1+ {[%clk 0:01:19]} 26. Kf2 {[%clk 0:02:03]}  Qe7 {[%clk 0:01:19]} 27. Rxf8+ {[%clk 0:01:58]}  Kg7 {[%clk 0:01:18]} 28. Qxh7+ {[%clk 0:01:52]}  Kxf8 {[%clk 0:01:18]} 29. Qh8+ {[%clk 0:01:51]}  Kf7 {[%clk 0:01:19]} 30. Bc4+ {[%clk 0:01:51]}  Re6 {[%clk 0:01:03]} 31. g4 {[%clk 0:01:50]}  Qd6 {[%clk 0:00:41]} 32. Qh7+ {[%clk 0:01:39]}  Ke8 {[%clk 0:00:32]} 33. Bxe6 {[%clk 0:01:34]}  Qxe6 {[%clk 0:00:29]} 34. Qxc7 {[%clk 0:01:34]}  Qd5 {[%clk 0:00:25]} 35. Qg3 {[%clk 0:01:34]}  Qa2+ {[%clk 0:00:23]} 36. Kf1 {[%clk 0:01:33]}  Bd5 {[%clk 0:00:19]} 37. Qe1+ {[%clk 0:01:33]}  Kf7 {[%clk 0:00:17]} 38. a5 {[%clk 0:01:33]}  Qxg2# {[%clk 0:00:15]} 0-1


[Site "https://www.chess.com"]

[Event "Titled Tuesday Blitz June 27 Late 2023"]
[White "Perez Torres, Nabi Isaias"]
[Black "Papp, Levente"]
[WhiteFideId "5120373"]
[BlackFideId "751243"]
[WhiteElo "2327"]
[BlackElo "2647"]
[Result "0-1"]
[Round "1"]
[TimeControl "180+2"]
[Date "2023.06.27"]
[WhiteClock "0:00:17"]
[BlackClock "0:01:42"]
[Board "124"]

1. d4 {[%clk 0:02:56]}  Nf6 {[%clk 0:02:59]} 2. c4 {[%clk 0:02:55]}  g6 {[%clk 0:02:57]} 3. Nc3 {[%clk 0:02:54]}  Bg7 {[%clk 0:02:56]} 4. e4 {[%clk 0:02:55]}  d6 {[%clk 0:02:57]} 5. Be2 {[%clk 0:02:55]}  O-O {[%clk 0:02:55]} 6. Nf3 {[%clk 0:02:55]}  c5 {[%clk 0:02:56]} 7. O-O {[%clk 0:02:53]}  cxd4 {[%clk 0:02:56]} 8. Nxd4 {[%clk 0:02:54]}  Nc6 {[%clk 0:02:53]} 9. Be3 {[%clk 0:02:55]}  Bd7 {[%clk 0:02:53]} 10. Re1 {[%clk 0:02:46]}  Rc8 {[%clk 0:02:53]} 11. Bd3 {[%clk 0:02:45]}  Ne5 {[%clk 0:02:52]} 12. b3 {[%clk 0:02:36]}  Nfg4 {[%clk 0:02:50]} 13. Bf1 {[%clk 0:02:30]}  Nxe3 {[%clk 0:02:48]} 14. Rxe3 {[%clk 0:02:31]}  Ng4 {[%clk 0:02:36]} 15. Rd3 {[%clk 0:02:05]}  Ne5 {[%clk 0:02:31]} 16. Re3 {[%clk 0:01:59]}  a6 {[%clk 0:02:25]} 17. h3 {[%clk 0:01:51]}  Nc6 {[%clk 0:02:18]} 18. Nde2 {[%clk 0:01:28]}  b5 {[%clk 0:02:17]} 19. cxb5 {[%clk 0:01:24]}  axb5 {[%clk 0:02:18]} 20. Nxb5 {[%clk 0:01:17]}  Bxa1 {[%clk 0:02:17]} 21. Qxa1 {[%clk 0:01:18]}  Nb4 {[%clk 0:02:14]} 22. Na3 {[%clk 0:00:49]}  Qa5 {[%clk 0:02:09]} 23. Nc4 {[%clk 0:00:42]}  Qxa2 {[%clk 0:02:06]} 24. Qc3 {[%clk 0:00:35]}  Nc6 {[%clk 0:01:52]} 25. h4 {[%clk 0:00:33]}  Ne5 {[%clk 0:01:51]} 26. h5 {[%clk 0:00:33]}  Nxc4 {[%clk 0:01:51]} 27. bxc4 {[%clk 0:00:32]}  Qxc4 {[%clk 0:01:50]} 28. Qa1 {[%clk 0:00:29]}  Qe6 {[%clk 0:01:47]} 29. hxg6 {[%clk 0:00:28]}  fxg6 {[%clk 0:01:45]} 30. Nd4 {[%clk 0:00:25]}  Qf6 {[%clk 0:01:44]} 31. Qa2+ {[%clk 0:00:24]}  Kh8 {[%clk 0:01:43]} 32. Ne2 {[%clk 0:00:17]}  Qxf2+ {[%clk 0:01:42]} 0-1


[Site "https://www.chess.com"]

[Event "Titled Tuesday Blitz June 27 Late 2023"]
[White "Fajdetic, Hrvoje"]
[Black "Ashraf, Artin"]
[WhiteFideId "14501945"]
[BlackFideId "22514805"]
[WhiteElo "2324"]
[BlackElo "2645"]
[Result "0-1"]
[Round "1"]
[TimeControl "180+2"]
[Date "2023.06.27"]
[WhiteClock "0:00:04"]
[BlackClock "0:00:11"]
[Board "126"]

1. d4 {[%clk 0:02:57]}  Nf6 {[%clk 0:02:56]} 2. Bf4 {[%clk 0:02:56]}  g6 {[%clk 0:02:56]} 3. Nc3 {[%clk 0:02:55]}  d5 {[%clk 0:02:56]} 4. e3 {[%clk 0:02:55]}  Bg7 {[%clk 0:02:54]} 5. h4 {[%clk 0:02:54]}  h5 {[%clk 0:02:53]} 6. Nf3 {[%clk 0:02:53]}  O-O {[%clk 0:02:53]} 7. Ne5 {[%clk 0:02:45]}  c5 {[%clk 0:02:52]} 8. Qd2 {[%clk 0:02:33]}  Nc6 {[%clk 0:02:43]} 9. O-O-O {[%clk 0:02:33]}  cxd4 {[%clk 0:02:41]} 10. exd4 {[%clk 0:02:32]}  Bf5 {[%clk 0:02:40]} 11. a3 {[%clk 0:02:16]}  Rc8 {[%clk 0:02:28]} 12. f3 {[%clk 0:02:15]}  a6 {[%clk 0:02:25]} 13. Be2 {[%clk 0:01:49]}  b5 {[%clk 0:02:14]} 14. Nxc6 {[%clk 0:01:43]}  Rxc6 {[%clk 0:02:12]} 15. g4 {[%clk 0:01:27]}  hxg4 {[%clk 0:02:05]} 16. fxg4 {[%clk 0:01:26]}  Ne4 {[%clk 0:02:05]} 17. Nxe4 {[%clk 0:01:09]}  Bxe4 {[%clk 0:02:03]} 18. c3 {[%clk 0:00:57]}  Qa5 {[%clk 0:01:37]} 19. Bd3 {[%clk 0:00:27]}  Bxh1 {[%clk 0:01:25]} 20. Rxh1 {[%clk 0:00:28]}  e5 {[%clk 0:01:25]} 21. Bh6 {[%clk 0:00:08]}  Bxh6 {[%clk 0:00:59]} 22. Qxh6 {[%clk 0:00:08]}  Rxc3+ {[%clk 0:01:00]} 23. bxc3 {[%clk 0:00:07]}  Qxc3+ {[%clk 0:01:00]} 24. Bc2 {[%clk 0:00:08]}  Qa1+ {[%clk 0:00:59]} 25. Kd2 {[%clk 0:00:08]}  Qxd4+ {[%clk 0:00:36]} 26. Kc1 {[%clk 0:00:08]}  Qa1+ {[%clk 0:00:15]} 27. Kd2 {[%clk 0:00:07]}  Qxh1 {[%clk 0:00:15]} 28. Bxg6 {[%clk 0:00:07]}  Qh2+ {[%clk 0:00:16]} 29. Kc1 {[%clk 0:00:07]}  Qf4+ {[%clk 0:00:11]} 30. Qxf4 {[%clk 0:00:06]}  exf4 {[%clk 0:00:11]} 31. Bd3 {[%clk 0:00:06]}  Re8 {[%clk 0:00:10]} 32. Kd2 {[%clk 0:00:06]}  f3 {[%clk 0:00:11]} 33. a4 {[%clk 0:00:05]}  bxa4 {[%clk 0:00:10]} 34. Bxa6 {[%clk 0:00:04]}  a3 {[%clk 0:00:11]} 35. Kc3 {[%clk 0:00:04]}  a2 {[%clk 0:00:08]} 36. Kb2 {[%clk 0:00:04]}  Ra8 {[%clk 0:00:08]} 37. Kxa2 {[%clk 0:00:03]}  Rxa6+ {[%clk 0:00:09]} 38. Kb2 {[%clk 0:00:04]}  f2 {[%clk 0:00:10]} 39. Kc3 {[%clk 0:00:05]}  f1=Q {[%clk 0:00:10]} 40. h5 {[%clk 0:00:05]}  Qf4 {[%clk 0:00:08]} 41. h6 {[%clk 0:00:06]}  Rxh6 {[%clk 0:00:07]} 42. g5 {[%clk 0:00:06]}  Rh3+ {[%clk 0:00:08]} 43. Kc2 {[%clk 0:00:05]}  Qh2+ {[%clk 0:00:09]} 44. Kd1 {[%clk 0:00:05]}  Qg2 {[%clk 0:00:10]} 45. g6 {[%clk 0:00:04]}  Rh1# {[%clk 0:00:11]} 0-1


[Site "https://www.chess.com"]